[Event "Titled Tuesday Blitz April 11 Late 2023"]
[White "Karamsetty, Jeevan"]
[Black "Mikhalsky, Vladimir"]
[WhiteFideId "2025337"]
[BlackFideId "14144352"]
[WhiteElo "2111"]
[BlackElo "2236"]
[Result "0-1"]
[Round "07"]
[TimeControl "180+2"]
[Date "2023.04.11"]
[WhiteClock "0:00:05"]
[BlackClock "0:00:13"]

1. e4 {[%clk 0:03:00]}  g6 {[%clk 0:02:59]} 2. d4 {[%clk 0:03:00]}  Bg7 {[%clk 0:02:59]} 3. Nc3 {[%clk 0:02:57]}  d6 {[%clk 0:03:00]} 4. Be3 {[%clk 0:02:58]}  a6 {[%clk 0:03:00]} 5. h4 {[%clk 0:02:58]}  h5 {[%clk 0:02:59]} 6. Nf3 {[%clk 0:02:57]}  Bg4 {[%clk 0:02:56]} 7. Qd2 {[%clk 0:02:48]}  Bxf3 {[%clk 0:02:53]} 8. gxf3 {[%clk 0:02:49]}  Nc6 {[%clk 0:02:52]} 9. O-O-O {[%clk 0:02:43]}  e5 {[%clk 0:02:51]} 10. d5 {[%clk 0:02:39]}  Nd4 {[%clk 0:02:51]} 11. f4 {[%clk 0:02:35]}  c5 {[%clk 0:02:41]} 12. dxc6 {[%clk 0:02:26]}  bxc6 {[%clk 0:02:40]} 13. Bc4 {[%clk 0:02:21]}  Ne7 {[%clk 0:02:36]} 14. fxe5 {[%clk 0:02:16]}  dxe5 {[%clk 0:02:35]} 15. f4 {[%clk 0:02:15]}  c5 {[%clk 0:02:26]} 16. fxe5 {[%clk 0:01:52]}  Bxe5 {[%clk 0:02:25]} 17. Bg5 {[%clk 0:01:47]}  f6 {[%clk 0:02:17]} 18. Be3 {[%clk 0:01:34]}  Qb6 {[%clk 0:02:13]} 19. Na4 {[%clk 0:01:27]}  Qc6 {[%clk 0:02:12]} 20. Qa5 {[%clk 0:01:04]}  Qxe4 {[%clk 0:01:42]} 21. Bxd4 {[%clk 0:01:03]}  cxd4 {[%clk 0:01:36]} 22. Rhe1 {[%clk 0:00:50]}  Qc6 {[%clk 0:01:35]} 23. Rxe5 {[%clk 0:00:34]}  fxe5 {[%clk 0:01:35]} 24. Qxe5 {[%clk 0:00:35]}  O-O-O {[%clk 0:01:26]} 25. b3 {[%clk 0:00:21]}  Nf5 {[%clk 0:01:21]} 26. Qa5 {[%clk 0:00:18]}  Rd6 {[%clk 0:01:07]} 27. Bd3 {[%clk 0:00:16]}  Ne3 {[%clk 0:01:04]} 28. Rg1 {[%clk 0:00:15]}  Kb7 {[%clk 0:01:02]} 29. Qe5 {[%clk 0:00:15]}  Re8 {[%clk 0:01:01]} 30. Qg7+ {[%clk 0:00:14]}  Qc7 {[%clk 0:00:59]} 31. Qh6 {[%clk 0:00:11]}  Nxc2 {[%clk 0:00:57]} 32. Kb2 {[%clk 0:00:04]}  Nb4 {[%clk 0:00:55]} 33. Bc4 {[%clk 0:00:05]}  d3 {[%clk 0:00:52]} 34. Rg2 {[%clk 0:00:02]}  Rc6 {[%clk 0:00:45]} 35. Qg5 {[%clk 0:00:02]}  Qe5+ {[%clk 0:00:44]} 36. Qxe5 {[%clk 0:00:02]}  Rxe5 {[%clk 0:00:44]} 37. Kc3 {[%clk 0:00:03]}  Nd5+ {[%clk 0:00:41]} 38. Kd4 {[%clk 0:00:03]}  Nf4 {[%clk 0:00:40]} 39. Rg3 {[%clk 0:00:02]}  Ra5 {[%clk 0:00:33]} 40. Nc3 {[%clk 0:00:02]}  Rd6+ {[%clk 0:00:28]} 41. Ke4 {[%clk 0:00:03]}  Ne2 {[%clk 0:00:26]} 42. Rxd3 {[%clk 0:00:03]}  Rxd3 {[%clk 0:00:22]} 43. Kxd3 {[%clk 0:00:02]}  Nxc3 {[%clk 0:00:22]} 44. Kxc3 {[%clk 0:00:03]}  Rxa2 {[%clk 0:00:22]} 45. Bf7 {[%clk 0:00:03]}  Rh2 {[%clk 0:00:20]} 46. Bxg6 {[%clk 0:00:03]}  Rxh4 {[%clk 0:00:20]} 47. Bf5 {[%clk 0:00:04]}  Kb6 {[%clk 0:00:19]} 48. Be6 {[%clk 0:00:04]}  Kc5 {[%clk 0:00:19]} 49. Kb2 {[%clk 0:00:05]}  a5 {[%clk 0:00:19]} 50. Ka3 {[%clk 0:00:05]}  Rf4 {[%clk 0:00:18]} 51. Bd7 {[%clk 0:00:05]}  h4 {[%clk 0:00:18]} 52. Bh3 {[%clk 0:00:06]}  Rf3 {[%clk 0:00:18]} 53. Bg4 {[%clk 0:00:07]}  Rg3 {[%clk 0:00:18]} 54. Be6 {[%clk 0:00:07]}  h3 {[%clk 0:00:18]} 55. Ka4 {[%clk 0:00:08]}  h2 {[%clk 0:00:18]} 56. Bf5 {[%clk 0:00:08]}  h1=Q {[%clk 0:00:17]} 57. b4+ {[%clk 0:00:09]}  axb4 {[%clk 0:00:16]} 58. Bd3 {[%clk 0:00:04]}  Qa1+ {[%clk 0:00:14]} 59. Kb3 {[%clk 0:00:04]}  Rxd3+ {[%clk 0:00:14]} 60. Kc2 {[%clk 0:00:05]}  Qc3+ {[%clk 0:00:13]} 0-1


[Site "https://www.chess.com"]

[Event "Titled Tuesday Blitz April 11 Late 2023"]
[White "Nadj Hedjesi, Balind"]
[Black "Krishnan, Varun"]
[WhiteFideId "934003"]
[BlackFideId "5054508"]
[WhiteElo "2368"]
[BlackElo "2341"]
[Result "0-1"]
[Round "07"]
[TimeControl "180+2"]
[Date "2023.04.11"]
[WhiteClock "0:00:01"]
[BlackClock "0:01:10"]

1. e4 {[%clk 0:02:59]}  c5 {[%clk 0:02:56]} 2. Nf3 {[%clk 0:02:59]}  d6 {[%clk 0:02:56]} 3. d4 {[%clk 0:02:59]}  cxd4 {[%clk 0:02:57]} 4. Nxd4 {[%clk 0:03:00]}  Nf6 {[%clk 0:02:57]} 5. Nc3 {[%clk 0:03:00]}  a6 {[%clk 0:02:58]} 6. Rg1 {[%clk 0:03:00]}  b5 {[%clk 0:02:53]} 7. g4 {[%clk 0:02:41]}  Bb7 {[%clk 0:02:53]} 8. g5 {[%clk 0:02:17]}  Nxe4 {[%clk 0:02:52]} 9. Nxe4 {[%clk 0:02:16]}  Bxe4 {[%clk 0:02:53]} 10. a4 {[%clk 0:02:16]}  b4 {[%clk 0:02:52]} 11. Qe2 {[%clk 0:02:14]}  d5 {[%clk 0:02:52]} 12. f3 {[%clk 0:01:58]}  Bg6 {[%clk 0:02:52]} 13. f4 {[%clk 0:01:59]}  Be4 {[%clk 0:02:51]} 14. Bg2 {[%clk 0:01:58]}  Bxg2 {[%clk 0:02:50]} 15. Rxg2 {[%clk 0:01:59]}  e6 {[%clk 0:02:41]} 16. f5 {[%clk 0:01:43]}  Qb6 {[%clk 0:02:13]} 17. fxe6 {[%clk 0:01:24]}  Qxd4 {[%clk 0:02:06]} 18. exf7+ {[%clk 0:01:11]}  Kd7 {[%clk 0:01:57]} 19. Rg4 {[%clk 0:01:09]}  Qc5 {[%clk 0:01:48]} 20. Be3 {[%clk 0:00:53]}  Qd6 {[%clk 0:01:38]} 21. O-O-O {[%clk 0:00:48]}  Nc6 {[%clk 0:01:38]} 22. Qg2 {[%clk 0:00:19]}  Ne7 {[%clk 0:01:31]} 23. Rgd4 {[%clk 0:00:19]}  Kc6 {[%clk 0:01:22]} 24. Rc4+ {[%clk 0:00:12]}  Kb7 {[%clk 0:01:19]} 25. Bc5 {[%clk 0:00:12]}  Qc6 {[%clk 0:01:13]} 26. Rxb4+ {[%clk 0:00:10]}  Kc8 {[%clk 0:01:13]} 27. Qg4+ {[%clk 0:00:04]}  Qd7 {[%clk 0:01:12]} 28. Qxd7+ {[%clk 0:00:03]}  Kxd7 {[%clk 0:01:13]} 29. Bxe7 {[%clk 0:00:03]}  Bxe7 {[%clk 0:01:12]} 30. Rb7+ {[%clk 0:00:01]}  Kd6 {[%clk 0:01:10]} 0-1


[Site "https://www.chess.com"]

[Event "Titled Tuesday Blitz April 11 Late 2023"]
[White "Filgueiras, Nathan Felipe"]
[Black "Papayan, Oleg"]
[WhiteFideId "2188562"]
[BlackFideId "4193911"]
[WhiteElo "2241"]
[BlackElo "2153"]
[Result "1-0"]
[Round "07"]
[TimeControl "180+2"]
[Date "2023.04.11"]
[WhiteClock "0:00:25"]
[BlackClock "0:00:04"]

1. e4 {[%clk 0:02:54]}  d5 {[%clk 0:02:59]} 2. e5 {[%clk 0:02:49]}  c5 {[%clk 0:02:57]} 3. c3 {[%clk 0:02:49]}  d4 {[%clk 0:02:58]} 4. cxd4 {[%clk 0:02:49]}  cxd4 {[%clk 0:02:59]} 5. f4 {[%clk 0:02:50]}  Nc6 {[%clk 0:02:58]} 6. Bc4 {[%clk 0:02:48]}  Nh6 {[%clk 0:02:59]} 7. d3 {[%clk 0:02:48]}  Nf5 {[%clk 0:02:52]} 8. Nf3 {[%clk 0:02:49]}  e6 {[%clk 0:02:52]} 9. O-O {[%clk 0:02:49]}  h5 {[%clk 0:02:50]} 10. Nbd2 {[%clk 0:02:49]}  a5 {[%clk 0:02:49]} 11. Ne4 {[%clk 0:02:48]}  h4 {[%clk 0:02:47]} 12. a3 {[%clk 0:02:47]}  a4 {[%clk 0:02:47]} 13. Bd2 {[%clk 0:02:37]}  Be7 {[%clk 0:02:47]} 14. Qe2 {[%clk 0:02:37]}  h3 {[%clk 0:02:47]} 15. g3 {[%clk 0:02:37]}  Rb8 {[%clk 0:02:42]} 16. Bb5 {[%clk 0:02:33]}  Qb6 {[%clk 0:02:37]} 17. Bxa4 {[%clk 0:02:26]}  Bd7 {[%clk 0:02:37]} 18. b4 {[%clk 0:02:24]}  f6 {[%clk 0:02:34]} 19. exf6 {[%clk 0:02:20]}  gxf6 {[%clk 0:02:35]} 20. Bb3 {[%clk 0:02:12]}  Ra8 {[%clk 0:02:28]} 21. Rfc1 {[%clk 0:02:05]}  e5 {[%clk 0:02:16]} 22. fxe5 {[%clk 0:02:03]}  fxe5 {[%clk 0:02:16]} 23. Nc5 {[%clk 0:01:59]}  Bxc5 {[%clk 0:02:15]} 24. Rxc5 {[%clk 0:01:59]}  Kd8 {[%clk 0:01:45]} 25. Bg5+ {[%clk 0:01:49]}  Kc8 {[%clk 0:01:37]} 26. Nxe5 {[%clk 0:01:49]}  Re8 {[%clk 0:01:38]} 27. Bf4 {[%clk 0:01:46]}  Ne3 {[%clk 0:01:18]} 28. Qh5 {[%clk 0:01:26]}  Rf8 {[%clk 0:00:12]} 29. Nxd7 {[%clk 0:01:19]}  Kxd7 {[%clk 0:00:13]} 30. Qh7+ {[%clk 0:01:13]}  Ke8 {[%clk 0:00:13]} 31. Qg6+ {[%clk 0:01:11]}  Kd8 {[%clk 0:00:13]} 32. Qd6+ {[%clk 0:01:05]}  Ke8 {[%clk 0:00:13]} 33. Qe6+ {[%clk 0:00:58]}  Kd8 {[%clk 0:00:14]} 34. Bg5+ {[%clk 0:00:58]}  Kc7 {[%clk 0:00:13]} 35. Bf4+ {[%clk 0:00:49]}  Rxf4 {[%clk 0:00:13]} 36. gxf4 {[%clk 0:00:49]}  Rd8 {[%clk 0:00:03]} 37. Rac1 {[%clk 0:00:41]}  Rd6 {[%clk 0:00:04]} 38. Qf7+ {[%clk 0:00:41]}  Rd7 {[%clk 0:00:04]} 39. Qf6 {[%clk 0:00:40]}  Kb8 {[%clk 0:00:04]} 40. Ba4 {[%clk 0:00:37]}  Qa6 {[%clk 0:00:04]} 41. Bxc6 {[%clk 0:00:36]}  bxc6 {[%clk 0:00:03]} 42. Rxc6 {[%clk 0:00:36]}  Qxd3 {[%clk 0:00:02]} 43. Rc8+ {[%clk 0:00:35]}  Ka7 {[%clk 0:00:03]} 44. R1c7+ {[%clk 0:00:23]}  Rxc7 {[%clk 0:00:04]} 45. Rxc7+ {[%clk 0:00:24]}  Ka8 {[%clk 0:00:04]} 46. Qd8# {[%clk 0:00:25]} 1-0


[Site "https://www.chess.com"]

[Event "Titled Tuesday Blitz April 11 Late 2023"]
[White "Alimpic, Aleksa"]
[Black "Grot, Blazej"]
[WhiteFideId "974323"]
[BlackFideId "21835845"]
[WhiteElo "2273"]
[BlackElo "1823"]
[Result "1-0"]
[Round "07"]
[TimeControl "180+2"]
[Date "2023.04.11"]
[WhiteClock "0:00:44"]
[BlackClock "0:01:46"]

1. d4 {[%clk 0:03:00]}  d6 {[%clk 0:02:59]} 2. c4 {[%clk 0:02:57]}  e5 {[%clk 0:02:59]} 3. e3 {[%clk 0:02:36]}  exd4 {[%clk 0:02:59]} 4. Qxd4 {[%clk 0:02:33]}  Nc6 {[%clk 0:02:58]} 5. Qd2 {[%clk 0:02:31]}  Be6 {[%clk 0:02:59]} 6. Nc3 {[%clk 0:02:29]}  Nf6 {[%clk 0:02:58]} 7. b3 {[%clk 0:02:28]}  d5 {[%clk 0:02:53]} 8. cxd5 {[%clk 0:02:27]}  Nxd5 {[%clk 0:02:53]} 9. Nxd5 {[%clk 0:02:22]}  Bxd5 {[%clk 0:02:54]} 10. Ne2 {[%clk 0:02:20]}  Be7 {[%clk 0:02:48]} 11. Nc3 {[%clk 0:02:15]}  Be6 {[%clk 0:02:46]} 12. Bb5 {[%clk 0:01:43]}  O-O {[%clk 0:02:44]} 13. Bxc6 {[%clk 0:01:40]}  bxc6 {[%clk 0:02:45]} 14. O-O {[%clk 0:01:34]}  Bf6 {[%clk 0:02:36]} 15. Qc2 {[%clk 0:01:30]}  Qe7 {[%clk 0:02:30]} 16. Bb2 {[%clk 0:01:27]}  Rad8 {[%clk 0:02:27]} 17. Rac1 {[%clk 0:01:25]}  Qc5 {[%clk 0:02:26]} 18. Ne4 {[%clk 0:01:19]}  Qg5 {[%clk 0:02:07]} 19. Nxg5 {[%clk 0:01:18]}  Bxg5 {[%clk 0:02:04]} 20. Rfd1 {[%clk 0:01:08]}  Bd5 {[%clk 0:01:59]} 21. h4 {[%clk 0:01:00]}  Bxh4 {[%clk 0:01:58]} 22. e4 {[%clk 0:01:00]}  Be6 {[%clk 0:01:55]} 23. Rxd8 {[%clk 0:01:00]}  Bxd8 {[%clk 0:01:53]} 24. Rd1 {[%clk 0:00:58]}  Bg5 {[%clk 0:01:52]} 25. Qxc6 {[%clk 0:00:56]}  a5 {[%clk 0:01:52]} 26. Qc3 {[%clk 0:00:56]}  Bf6 {[%clk 0:01:51]} 27. Qc2 {[%clk 0:00:55]}  Bg5 {[%clk 0:01:51]} 28. Qxc7 {[%clk 0:00:55]}  a4 {[%clk 0:01:51]} 29. bxa4 {[%clk 0:00:51]}  Bxa2 {[%clk 0:01:51]} 30. Qc3 {[%clk 0:00:47]}  Bf6 {[%clk 0:01:49]} 31. Qa3 {[%clk 0:00:47]}  Bxb2 {[%clk 0:01:48]} 32. Qxb2 {[%clk 0:00:48]}  Be6 {[%clk 0:01:48]} 33. a5 {[%clk 0:00:47]}  h5 {[%clk 0:01:49]} 34. a6 {[%clk 0:00:47]}  h4 {[%clk 0:01:50]} 35. a7 {[%clk 0:00:47]}  h3 {[%clk 0:01:50]} 36. gxh3 {[%clk 0:00:48]}  g5 {[%clk 0:01:47]} 37. Qb8 {[%clk 0:00:46]}  Bxh3 {[%clk 0:01:45]} 38. Qxf8+ {[%clk 0:00:45]}  Kxf8 {[%clk 0:01:45]} 39. a8=Q+ {[%clk 0:00:46]}  Kg7 {[%clk 0:01:46]} 40. Qd5 {[%clk 0:00:46]}  Be6 {[%clk 0:01:47]} 41. Qxg5+ {[%clk 0:00:46]}  Kf8 {[%clk 0:01:46]} 42. Rd8# {[%clk 0:00:44]} 1-0


[Site "https://www.chess.com"]

[Event "Titled Tuesday Blitz April 11 Late 2023"]
[White "Rose, Felix"]
[Black "Kovalevsky, Stanislav"]
[WhiteFideId "5105722"]
[BlackFideId "13508598"]
[WhiteElo "2039"]
[BlackElo "2174"]
[Result "0-1"]
[Round "07"]
[TimeControl "180+2"]
[Date "2023.04.11"]
[WhiteClock "0:00:54"]
[BlackClock "0:00:11"]

1. e4 {[%clk 0:03:00]}  e6 {[%clk 0:02:02]} 2. d4 {[%clk 0:02:59]}  d5 {[%clk 0:02:03]} 3. Nc3 {[%clk 0:03:00]}  dxe4 {[%clk 0:02:03]} 4. Nxe4 {[%clk 0:03:00]}  Nf6 {[%clk 0:02:04]} 5. Nxf6+ {[%clk 0:03:00]}  gxf6 {[%clk 0:02:05]} 6. Nf3 {[%clk 0:02:55]}  Nc6 {[%clk 0:02:06]} 7. g3 {[%clk 0:02:48]}  Ne7 {[%clk 0:02:06]} 8. Bg2 {[%clk 0:02:48]}  Bd7 {[%clk 0:02:07]} 9. O-O {[%clk 0:02:47]}  Bc6 {[%clk 0:02:07]} 10. Re1 {[%clk 0:02:46]}  Qd7 {[%clk 0:02:07]} 11. c3 {[%clk 0:02:33]}  h5 {[%clk 0:02:04]} 12. Nh4 {[%clk 0:02:30]}  O-O-O {[%clk 0:02:01]} 13. Bxc6 {[%clk 0:02:27]}  Qxc6 {[%clk 0:01:59]} 14. Qf3 {[%clk 0:02:24]}  Qxf3 {[%clk 0:01:16]} 15. Nxf3 {[%clk 0:02:24]}  Nf5 {[%clk 0:01:17]} 16. h4 {[%clk 0:02:23]}  c5 {[%clk 0:01:16]} 17. Re4 {[%clk 0:01:44]}  cxd4 {[%clk 0:01:10]} 18. cxd4 {[%clk 0:01:43]}  Kb8 {[%clk 0:00:53]} 19. Bf4+ {[%clk 0:01:41]}  Bd6 {[%clk 0:00:51]} 20. Rd1 {[%clk 0:01:22]}  Bxf4 {[%clk 0:00:38]} 21. Rxf4 {[%clk 0:01:22]}  Rd5 {[%clk 0:00:38]} 22. Rc1 {[%clk 0:01:13]}  Rhd8 {[%clk 0:00:35]} 23. Rc4 {[%clk 0:01:12]}  b5 {[%clk 0:00:19]} 24. Rb4 {[%clk 0:01:13]}  a5 {[%clk 0:00:19]} 25. Rb3 {[%clk 0:01:13]}  Kb7 {[%clk 0:00:18]} 26. a4 {[%clk 0:01:08]}  b4 {[%clk 0:00:18]} 27. Rd3 {[%clk 0:01:09]}  Rc8 {[%clk 0:00:18]} 28. Kf1 {[%clk 0:01:05]}  Rc2 {[%clk 0:00:17]} 29. b3 {[%clk 0:01:04]}  Kb6 {[%clk 0:00:14]} 30. Ke1 {[%clk 0:01:04]}  Rd7 {[%clk 0:00:13]} 31. d5 {[%clk 0:01:03]}  Rc3 {[%clk 0:00:09]} 32. Rxc3 {[%clk 0:01:02]}  bxc3 {[%clk 0:00:10]} 33. Rc4 {[%clk 0:00:55]}  Rxd5 {[%clk 0:00:10]} 34. Rxc3 {[%clk 0:00:55]}  Nd4 {[%clk 0:00:09]} 35. Nxd4 {[%clk 0:00:54]}  Rxd4 {[%clk 0:00:10]} 36. Ke2 {[%clk 0:00:54]}  f5 {[%clk 0:00:08]} 37. Ke3 {[%clk 0:00:54]}  Rb4 {[%clk 0:00:08]} 38. Kd3 {[%clk 0:00:55]}  e5 {[%clk 0:00:08]} 39. Kc2 {[%clk 0:00:55]}  f4 {[%clk 0:00:09]} 40. Rc8 {[%clk 0:00:55]}  fxg3 {[%clk 0:00:09]} 41. fxg3 {[%clk 0:00:55]}  Rg4 {[%clk 0:00:10]} 42. Rc3 {[%clk 0:00:55]}  f5 {[%clk 0:00:09]} 43. Rf3 {[%clk 0:00:54]}  f4 {[%clk 0:00:09]} 44. gxf4 {[%clk 0:00:55]}  exf4 {[%clk 0:00:10]} 45. Rh3 {[%clk 0:00:55]}  Kc5 {[%clk 0:00:11]} 46. Kc3 {[%clk 0:00:55]}  Rg3+ {[%clk 0:00:10]} 47. Rxg3 {[%clk 0:00:54]}  fxg3 {[%clk 0:00:11]} 0-1


[Site "https://www.chess.com"]

[Event "Titled Tuesday Blitz April 11 Late 2023"]
[White "Dzierzak, Radoslaw"]
[Black "Rodriguez Santiago, Jaime"]
[WhiteFideId "1161407"]
[BlackFideId "3100898"]
[WhiteElo "2166"]
[BlackElo "2025"]
[Result "0-1"]
[Round "07"]
[TimeControl "180+2"]
[Date "2023.04.11"]
[WhiteClock "0:00:06"]
[BlackClock "0:00:17"]

1. e4 {[%clk 0:03:00]}  c6 {[%clk 0:02:58]} 2. Nf3 {[%clk 0:03:00]}  d5 {[%clk 0:02:58]} 3. Nc3 {[%clk 0:03:01]}  dxe4 {[%clk 0:02:59]} 4. Nxe4 {[%clk 0:03:02]}  Nf6 {[%clk 0:02:59]} 5. Qe2 {[%clk 0:03:02]}  Nxe4 {[%clk 0:02:58]} 6. Qxe4 {[%clk 0:03:03]}  Qa5 {[%clk 0:02:58]} 7. Bc4 {[%clk 0:02:59]}  Bf5 {[%clk 0:02:57]} 8. Qf4 {[%clk 0:02:49]}  e6 {[%clk 0:02:57]} 9. O-O {[%clk 0:02:39]}  Nd7 {[%clk 0:02:54]} 10. d4 {[%clk 0:02:11]}  Be7 {[%clk 0:02:37]} 11. Bd2 {[%clk 0:02:09]}  Qb6 {[%clk 0:02:28]} 12. Bc3 {[%clk 0:02:05]}  Bf6 {[%clk 0:02:20]} 13. Ne5 {[%clk 0:01:58]}  Bxe5 {[%clk 0:02:07]} 14. dxe5 {[%clk 0:01:58]}  Bxc2 {[%clk 0:02:07]} 15. a4 {[%clk 0:01:39]}  O-O {[%clk 0:01:53]} 16. a5 {[%clk 0:01:27]}  Qc7 {[%clk 0:01:52]} 17. Rac1 {[%clk 0:01:24]}  Bg6 {[%clk 0:01:50]} 18. h4 {[%clk 0:01:05]}  h6 {[%clk 0:01:44]} 19. a6 {[%clk 0:00:43]}  b6 {[%clk 0:01:35]} 20. Be2 {[%clk 0:00:42]}  Rad8 {[%clk 0:01:19]} 21. Bf3 {[%clk 0:00:39]}  Nc5 {[%clk 0:01:18]} 22. Qg3 {[%clk 0:00:22]}  Kh8 {[%clk 0:01:02]} 23. Bb4 {[%clk 0:00:13]}  Bd3 {[%clk 0:00:36]} 24. Rfd1 {[%clk 0:00:12]}  Bxa6 {[%clk 0:00:36]} 25. Rxd8 {[%clk 0:00:12]}  Rxd8 {[%clk 0:00:35]} 26. Bxc5 {[%clk 0:00:12]}  bxc5 {[%clk 0:00:35]} 27. Rxc5 {[%clk 0:00:12]}  Bb5 {[%clk 0:00:30]} 28. Be4 {[%clk 0:00:08]}  Qe7 {[%clk 0:00:24]} 29. b4 {[%clk 0:00:08]}  Rd4 {[%clk 0:00:18]} 30. Bc2 {[%clk 0:00:06]}  Rxh4 {[%clk 0:00:17]} 31. Qxh4 {[%clk 0:00:06]}  Qxh4 {[%clk 0:00:17]} 0-1


[Site "https://www.chess.com"]

[Event "Titled Tuesday Blitz April 11 Late 2023"]
[White "Kopacz, Grzegorz"]
[Black "Fernandez, Maria Florencia"]
[WhiteFideId "1109880"]
[BlackFideId "116459"]
[WhiteElo "2037"]
[BlackElo "2120"]
[Result "0-1"]
[Round "07"]
[TimeControl "180+2"]
[Date "2023.04.11"]
[WhiteClock "0:00:02"]
[BlackClock "0:00:03"]

1. c4 {[%clk 0:03:00]}  Nf6 {[%clk 0:02:59]} 2. Nf3 {[%clk 0:03:00]}  g6 {[%clk 0:02:58]} 3. g3 {[%clk 0:03:00]}  Bg7 {[%clk 0:02:59]} 4. Bg2 {[%clk 0:03:00]}  O-O {[%clk 0:03:00]} 5. O-O {[%clk 0:03:00]}  d6 {[%clk 0:03:01]} 6. d4 {[%clk 0:02:59]}  e5 {[%clk 0:03:02]} 7. Nc3 {[%clk 0:02:51]}  Nc6 {[%clk 0:03:00]} 8. dxe5 {[%clk 0:02:51]}  dxe5 {[%clk 0:02:47]} 9. Bg5 {[%clk 0:02:50]}  Be6 {[%clk 0:02:33]} 10. Nd5 {[%clk 0:02:40]}  Bxd5 {[%clk 0:02:26]} 11. cxd5 {[%clk 0:02:40]}  Qxd5 {[%clk 0:02:24]} 12. Qxd5 {[%clk 0:02:22]}  Nxd5 {[%clk 0:02:23]} 13. Nxe5 {[%clk 0:02:18]}  Nxe5 {[%clk 0:02:11]} 14. Bxd5 {[%clk 0:02:17]}  c6 {[%clk 0:02:11]} 15. Bg2 {[%clk 0:01:41]}  Nc4 {[%clk 0:02:07]} 16. Rad1 {[%clk 0:01:31]}  h6 {[%clk 0:01:31]} 17. Bc1 {[%clk 0:01:26]}  Rfd8 {[%clk 0:01:31]} 18. b3 {[%clk 0:01:22]}  Nb6 {[%clk 0:01:27]} 19. Be3 {[%clk 0:01:19]}  Kf8 {[%clk 0:01:09]} 20. Bc5+ {[%clk 0:01:04]}  Ke8 {[%clk 0:01:08]} 21. e3 {[%clk 0:00:57]}  Nd5 {[%clk 0:00:46]} 22. Bxd5 {[%clk 0:00:53]}  cxd5 {[%clk 0:00:47]} 23. Rd3 {[%clk 0:00:44]}  b6 {[%clk 0:00:47]} 24. Bd4 {[%clk 0:00:44]}  Bxd4 {[%clk 0:00:32]} 25. Rxd4 {[%clk 0:00:43]}  Ke7 {[%clk 0:00:28]} 26. Rfd1 {[%clk 0:00:42]}  Rac8 {[%clk 0:00:23]} 27. Rxd5 {[%clk 0:00:40]}  Rxd5 {[%clk 0:00:24]} 28. Rxd5 {[%clk 0:00:40]}  Rc2 {[%clk 0:00:24]} 29. a4 {[%clk 0:00:32]}  Rb2 {[%clk 0:00:19]} 30. Rb5 {[%clk 0:00:32]}  Kd6 {[%clk 0:00:13]} 31. h4 {[%clk 0:00:27]}  Kc6 {[%clk 0:00:13]} 32. Kg2 {[%clk 0:00:25]}  h5 {[%clk 0:00:13]} 33. Kf3 {[%clk 0:00:25]}  a6 {[%clk 0:00:13]} 34. Rb4 {[%clk 0:00:23]}  Kc5 {[%clk 0:00:13]} 35. Rc4+ {[%clk 0:00:20]}  Kd5 {[%clk 0:00:14]} 36. Rf4 {[%clk 0:00:20]}  Rxb3 {[%clk 0:00:11]} 37. Rxf7 {[%clk 0:00:20]}  Rb4 {[%clk 0:00:11]} 38. Rb7 {[%clk 0:00:20]}  Kc6 {[%clk 0:00:11]} 39. Rg7 {[%clk 0:00:20]}  Rxa4 {[%clk 0:00:12]} 40. Rxg6+ {[%clk 0:00:21]}  Kc7 {[%clk 0:00:10]} 41. e4 {[%clk 0:00:18]}  b5 {[%clk 0:00:07]} 42. Ke3 {[%clk 0:00:16]}  b4 {[%clk 0:00:06]} 43. Kd3 {[%clk 0:00:16]}  a5 {[%clk 0:00:06]} 44. e5 {[%clk 0:00:13]}  Ra1 {[%clk 0:00:06]} 45. Rg7+ {[%clk 0:00:12]}  Kc6 {[%clk 0:00:03]} 46. Ra7 {[%clk 0:00:10]}  Kd5 {[%clk 0:00:03]} 47. f4 {[%clk 0:00:08]}  Ra3+ {[%clk 0:00:02]} 48. Kc2 {[%clk 0:00:08]}  a4 {[%clk 0:00:01]} 49. e6 {[%clk 0:00:07]}  b3+ {[%clk 0:00:01]} 50. Kb2 {[%clk 0:00:07]}  Ra2+ {[%clk 0:00:02]} 51. Kc3 {[%clk 0:00:08]}  Kxe6 {[%clk 0:00:03]} 52. Ra5 {[%clk 0:00:06]}  Rc2+ {[%clk 0:00:02]} 53. Kd3 {[%clk 0:00:06]}  Ra2 {[%clk 0:00:02]} 54. Kc3 {[%clk 0:00:06]}  Ra1 {[%clk 0:00:02]} 55. Rxh5 {[%clk 0:00:03]}  Ra2 {[%clk 0:00:01]} 56. Ra5 {[%clk 0:00:02]}  Rc2+ {[%clk 0:00:02]} 57. Kd3 {[%clk 0:00:02]}  Ra2 {[%clk 0:00:02]} 58. Kc3 {[%clk 0:00:02]}  Kd6 {[%clk 0:00:03]} 59. h5 {[%clk 0:00:02]}  Kc6 {[%clk 0:00:02]} 60. h6 {[%clk 0:00:02]}  Kb6 {[%clk 0:00:03]} 61. Ra8 {[%clk 0:00:02]}  Rh2 {[%clk 0:00:03]} 0-1


[Site "https://www.chess.com"]

[Event "Titled Tuesday Blitz April 11 Late 2023"]
[White "Romero Ruscalleda, Josep"]
[Black "Spitzl, Vinzent"]
[WhiteFideId "2231859"]
[BlackFideId "12901253"]
[WhiteElo "2183"]
[BlackElo "2225"]
[Result "0-1"]
[Round "07"]
[TimeControl "180+2"]
[Date "2023.04.11"]
[WhiteClock "0:01:34"]
[BlackClock "0:01:33"]

1. e4 {[%clk 0:03:00]}  c5 {[%clk 0:02:57]} 2. c3 {[%clk 0:03:00]}  d5 {[%clk 0:02:57]} 3. exd5 {[%clk 0:03:00]}  Qxd5 {[%clk 0:02:58]} 4. Nf3 {[%clk 0:03:00]}  Nf6 {[%clk 0:02:52]} 5. Na3 {[%clk 0:02:59]}  Bg4 {[%clk 0:02:47]} 6. Be2 {[%clk 0:02:57]}  e6 {[%clk 0:02:44]} 7. O-O {[%clk 0:02:54]}  Be7 {[%clk 0:02:43]} 8. Nb5 {[%clk 0:02:45]}  Qd8 {[%clk 0:02:34]} 9. d4 {[%clk 0:02:44]}  a6 {[%clk 0:02:20]} 10. Qa4 {[%clk 0:02:41]}  Nc6 {[%clk 0:02:12]} 11. Na3 {[%clk 0:02:40]}  cxd4 {[%clk 0:02:00]} 12. Nxd4 {[%clk 0:02:26]}  Bxe2 {[%clk 0:01:50]} 13. Nxe2 {[%clk 0:02:25]}  O-O {[%clk 0:01:50]} 14. Bf4 {[%clk 0:02:21]}  b5 {[%clk 0:01:49]} 15. Qc2 {[%clk 0:02:19]}  Qb6 {[%clk 0:01:48]} 16. Be3 {[%clk 0:02:17]}  Qb7 {[%clk 0:01:47]} 17. Rad1 {[%clk 0:02:14]}  Bxa3 {[%clk 0:01:45]} 18. bxa3 {[%clk 0:02:14]}  Nd5 {[%clk 0:01:44]} 19. Bc1 {[%clk 0:02:10]}  Na5 {[%clk 0:01:41]} 20. a4 {[%clk 0:02:08]}  Rac8 {[%clk 0:01:40]} 21. axb5 {[%clk 0:02:06]}  axb5 {[%clk 0:01:41]} 22. Bd2 {[%clk 0:01:50]}  Nc4 {[%clk 0:01:36]} 23. Rb1 {[%clk 0:01:43]}  Qa6 {[%clk 0:01:33]} 24. Qb2 {[%clk 0:01:34]}  Nxb2 {[%clk 0:01:33]} 0-1


[Site "https://www.chess.com"]